bitfinex-derivatives/quotes_BTCF0:USTF0_20240815
["timestamp","ask_amount","ask_price","bid_price","bid_amount"]
[1723687182998,0.3608,58282.0,58280.0,0.060038]
[1723687183199,0.3608,58289.0,58281.0,0.3608]
[1723687183501,0.3608,58302.0,58288.0,3.77]
[1723687183811,0.12006,58289.0,58288.0,3.77]
[1723687184026,0.27006,58289.0,58288.0,3.77]
[1723687184207,0.06003,58289.0,58288.0,3.77]
[1723687185007,0.781626,58293.0,58288.0,3.77]
[1723687185205,0.060027,58292.0,58288.0,3.77]
[1723687185408,0.3608,58300.0,58288.0,3.77]
[1723687185599,0.060029,58290.0,58288.0,3.77]
[1723687185794,0.06003,58289.0,58288.0,3.77]
[1723687186000,0.3608,58300.0,58288.0,4.2708]
[1723687186300,0.3608,58300.0,58296.0,0.060022]
[1723687186503,0.3608,58300.0,58293.0,0.3608]
[1723687186701,0.3608,58300.0,58288.0,4.18173226]
[1723687186702,0.5208,58300.0,58288.0,3.77]
[1723687186903,0.5208,58300.0,58293.0,0.3608]
[1723687187504,0.00025744,58301.0,58293.0,1.0746]
[1723687187700,0.00025744,58301.0,58300.0,0.060018]
[1723687188006,0.3608,58315.0,58306.0,0.060012]
[1723687188307,0.5208,58315.0,58306.0,0.5008]
[1723687188509,0.220003,58315.0,58314.0,0.3608]
[1723687188806,0.060012,58306.0,58288.0,0.3608]
[1723687189003,0.3608,58295.0,58288.0,0.5208]
[1723687189209,0.060024,58295.0,58289.0,3.77]
[1723687189403,0.3608,58302.0,58289.0,3.94]
[1723687189601,0.060029,58290.0,58289.0,3.94]
[1723687189807,0.3608,58302.0,58289.0,4.000029]
[1723687190105,0.060029,58290.0,58289.0,3.94]
[1723687190511,0.060026,58293.0,58290.0,0.060029]
[1723687190811,0.060028,58291.0,58290.0,0.15]
[1723687191109,0.00025744,58301.0,58291.0,0.51464]
[1723687191313,0.00025744,58301.0,58297.0,0.06002]
[1723687191616,0.00025744,58301.0,58300.0,3.77]
[1723687191908,0.3608,58311.0,58300.0,3.92]
[1723687192103,0.060017,58301.0,58300.0,3.92]
[1723687192804,0.220017,58301.0,58300.0,3.92]
[1723687193005,0.15,58301.0,58300.0,3.92]
[1723687193314,0.210017,58301.0,58300.0,3.92]
[1723687193699,0.270034,58301.0,58300.0,3.92]
[1723687193899,0.330051,58301.0,58300.0,3.77]
[1723687194116,0.5146,58300.0,58281.0,0.05100538]
[1723687194304,0.3608,58291.0,58281.0,0.14]
[1723687194500,0.590828,58291.0,58285.0,0.3608]
[1723687194708,0.5308,58291.0,58285.0,0.5208]
[1723687194898,0.3608,58291.0,58290.0,0.060029]
[1723687195100,0.3608,58291.0,58285.0,0.5208]
[1723687195101,0.5008,58291.0,58285.0,0.3608]
[1723687195401,0.060033,58286.0,58285.0,0.3608]
[1723687195608,0.200033,58286.0,58285.0,0.3608]
[1723687195813,0.200033,58286.0,58285.0,0.36105744]
[1723687196017,0.3608,58291.0,58285.0,5.19577744]
[1723687196319,0.3608,58291.0,58279.0,0.42582683]
[1723687196320,0.120112,58263.0,58250.0,0.05104374]
[1723687196518,0.3608,58261.0,58250.0,0.14]
[1723687196714,0.060069,58252.0,58251.0,3.77]
[1723687196924,0.060069,58252.0,58251.0,3.91]
[1723687197224,0.42101826,58252.0,58251.0,4.17]
[1723687197414,0.42101826,58252.0,58251.0,3.77]
[1723687198031,0.06021826,58252.0,58251.0,3.77]
[1723687198332,0.06021826,58252.0,58240.0,0.06805832]
[1723687198333,0.3608,58234.0,58204.0,0.3608]
[1723687198517,0.3608,58214.0,58210.0,0.06011]
[1723687198819,0.3608,58214.0,58211.0,0.3774]
[1723687199021,0.060109,58213.0,58211.0,0.3774]
[1723687199319,0.00021596,58212.0,58211.0,0.3774]
[1723687199715,0.00021596,58212.0,58211.0,1.29276]
[1723687200027,0.00021596,58212.0,58211.0,0.3774]
[1723687200215,0.00025767,58218.0,58211.0,1.46026]
[1723687200419,0.3608,58236.0,58217.0,0.3608]
[1723687200724,0.3608,58249.0,58233.0,0.3608]
[1723687200920,0.3608,58257.0,58245.0,0.3608]
[1723687201118,0.3608,58261.0,58253.0,0.3608]
[1723687201328,0.42085,58269.0,58253.0,0.5308]
[1723687201329,0.0001214,58260.0,58253.0,0.5308]
[1723687201516,0.0001214,58260.0,58254.0,0.3608]
[1723687201719,0.06006,58259.0,58254.0,1.27576]
[1723687201920,0.3608,58255.0,58251.0,0.00025767]
[1723687202221,0.3608,58252.0,58235.0,0.06024262]
[1723687202421,0.3608,58252.0,58235.0,0.22024262]
[1723687202621,0.3608,58252.0,58240.0,0.3608]
[1723687202822,0.7216,58241.0,58235.0,0.00015762]
[1723687203119,0.0001214,58240.0,58235.0,0.00015762]
[1723687203321,0.0001214,58240.0,58236.0,0.060083]
[1723687203530,0.3608,58254.0,58239.0,0.3608]
[1723687203717,0.3608,58265.0,58256.0,0.060063]
[1723687204033,0.3608,58265.0,58257.0,0.1763]
[1723687204240,0.3608,58292.0,58264.0,4.4916]
[1723687204522,0.3608,58280.0,58271.0,0.3608]
[1723687204826,0.06031045,58266.0,58265.0,0.1913]
[1723687205022,0.48116345,58266.0,58264.0,3.77]
[1723687205225,0.590853,58266.0,58264.0,3.77]
[1723687205429,0.420853,58266.0,58264.0,3.77]
[1723687205619,0.3608,58266.0,58264.0,3.77]
[1723687206025,0.420854,58266.0,58264.0,3.77]
[1723687207326,1.165788,58266.0,58264.0,3.77]
[1723687207627,0.120118,58260.0,58259.0,0.00013605]
[1723687207828,0.650918,58260.0,58259.0,0.00013605]
[1723687208123,0.590859,58260.0,58259.0,0.00013605]
[1723687208327,0.420859,58260.0,58259.0,0.00013605]
[1723687208518,0.060059,58260.0,58259.0,0.00013605]
[1723687208723,0.060059,58260.0,58259.0,3.77013605]
[1723687209023,0.3608,58266.0,58259.0,4.83505605]
[1723687209223,0.3608,58266.0,58259.0,3.77013605]
[1723687209424,0.060059,58261.0,58259.0,3.77013605]
[1723687209624,0.060059,58261.0,58238.0,0.3608]
[1723687209625,0.060074,58246.0,58238.0,0.3608]
[1723687209833,0.060081,58239.0,58238.0,0.3608]
[1723687210024,0.060081,58239.0,58225.0,0.1765]
[1723687210025,0.060084,58236.0,58227.0,0.1864]
[1723687210331,0.060084,58236.0,58235.0,0.15015762]
[1723687210530,0.060084,58236.0,58235.0,0.16015762]
[1723687210720,0.060084,58236.0,58235.0,3.77015762]
[1723687210920,0.060076,58245.0,58235.0,4.82531762]
[1723687211138,0.3608,58254.0,58236.0,0.1864]
[1723687211340,0.17,58254.0,58252.0,0.420867]
[1723687211535,0.3608,58267.0,58253.0,0.515]
[1723687211722,0.060065,58255.0,58253.0,0.3516]
[1723687211926,0.060065,58255.0,58253.0,0.1816]
[1723687212123,0.230065,58255.0,58254.0,3.77]
[1723687212322,0.590865,58255.0,58253.0,0.1816]
[1723687212527,0.06006,58260.0,58258.0,0.060061]
[1723687212528,0.00025745,58260.0,58258.0,0.060061]
[1723687212927,0.00025745,58260.0,58253.0,0.3316]
[1723687213122,0.00025745,58260.0,58255.0,0.3608]
[1723687213324,0.00025745,58260.0,58258.0,0.060061]
[1723687213528,0.00025745,58260.0,58258.0,0.210061]
[1723687213731,0.3608,58273.0,58259.0,0.51496]
[1723687213924,0.060049,58270.0,58268.0,0.3608]
[1723687214124,0.230049,58270.0,58268.0,0.3608]
[1723687214340,0.17,58270.0,58268.0,0.3608]
[1723687214731,0.17,58270.0,58269.0,3.77]
[1723687215024,0.420846,58273.0,58269.0,3.92]
[1723687215222,0.3608,58273.0,58269.0,3.92]
[1723687215424,0.00025745,58275.0,58274.0,0.060045]
[1723687215631,0.00025745,58275.0,58274.0,0.210045]
[1723687215827,0.00025745,58275.0,58274.0,0.610045]
[1723687216028,0.3608,58279.0,58274.0,3.92]
[1723687216235,0.06002,58299.0,58278.0,0.3608]
[1723687216431,0.060022,58296.0,58295.0,0.3608]
[1723687216628,0.3608,58304.0,58288.0,0.3608]
[1723687216629,0.060029,58290.0,58288.0,0.3608]
[1723687216941,0.060029,58290.0,58289.0,3.77]
[1723687217125,0.060029,58290.0,58289.0,3.91]
[1723687217928,0.060029,58290.0,58289.0,3.77]
[1723687218437,0.00025745,58295.0,58289.0,3.77]
[1723687218627,0.00025745,58295.0,58294.0,0.3608]
[1723687218829,0.3608,58312.0,58294.0,0.3608]
[1723687218830,0.059995,58322.0,58294.0,1.44544]
[1723687219026,0.3608,58317.0,58296.0,0.3608]
[1723687219232,0.3608,58317.0,58316.0,3.77]
[1723687219233,0.480802,58317.0,58316.0,3.77]
[1723687219537,0.640802,58317.0,58316.0,3.77]
[1723687219740,1.555242,58317.0,58316.0,3.77]
[1723687219927,1.095241,58317.0,58316.0,3.77]
[1723687220129,1.555242,58317.0,58316.0,3.77]
[1723687220527,1.495241,58317.0,58316.0,3.77]
[1723687220727,0.420801,58317.0,58316.0,3.77]
[1723687220930,0.060001,58317.0,58316.0,3.77]
[1723687222134,0.480802,58317.0,58316.0,3.77]
[1723687222339,0.00025722,58322.0,58316.0,3.77]
[1723687222537,0.00025722,58322.0,58321.0,0.3608]
[1723687222747,0.06025222,58322.0,58321.0,0.3608]
[1723687223132,0.00025722,58322.0,58321.0,4.1308]
[1723687223940,0.059984,58333.0,58321.0,4.1308]
[1723687224149,0.3608,58331.0,58321.0,4.1308]
[1723687224334,0.060006,58312.0,58311.0,0.00025722]
[1723687224528,0.190012,58312.0,58311.0,0.00025722]
[1723687224743,0.120012,58312.0,58311.0,0.00025722]
[1723687224929,0.120012,58312.0,58304.0,0.3608]
[1723687224930,0.060013,58305.0,58304.0,0.02656762]
[1723687225129,0.08780403,58305.0,58304.0,0.17656762]
[1723687225427,0.08780403,58305.0,58297.0,0.3608]
[1723687225428,0.06002,58298.0,58297.0,0.3608]
[1723687225636,0.08277977,58299.0,58297.0,0.9108]
[1723687225835,0.04967714,58299.0,58298.0,4.28456]
[1723687226033,0.04967714,58299.0,58298.0,4.51458]
[1723687226336,0.049659,58299.0,58298.0,4.85456]
[1723687226638,0.06623132,58303.0,58302.0,0.060016]
[1723687226836,0.06623132,58303.0,58302.0,0.200016]
[1723687227026,0.140015,58303.0,58302.0,0.14]
[1723687227225,0.060019,58299.0,58298.0,3.77]
[1723687227430,0.060019,58299.0,58298.0,3.94]
[1723687227638,0.08781395,58299.0,58298.0,3.94]
[1723687227836,0.22781395,58299.0,58298.0,3.94]
[1723687228230,0.16781395,58299.0,58298.0,3.94]
[1723687228631,0.08781395,58299.0,58298.0,3.94]
[1723687229030,0.640838,58299.0,58298.0,3.77]
[1723687229341,0.6582971,58299.0,58298.0,3.77]
[1723687229943,0.6582971,58299.0,58298.0,3.94]
[1723687230135,0.60861395,58299.0,58298.0,3.94]
[1723687230737,0.70810476,58299.0,58298.0,3.94]
[1723687230938,0.70810708,58299.0,58298.0,3.94]
[1723687231137,0.76812555,58299.0,58298.0,3.94]
[1723687231345,0.60861482,58299.0,58298.0,3.77]
[1723687231540,0.18779582,58299.0,58298.0,4.91462]
[1723687231749,0.02779582,58299.0,58298.0,3.94]
[1723687231949,0.00025722,58304.0,58298.0,4.34]
[1723687232150,0.060016,58302.0,58299.0,0.3608]
[1723687232445,0.00025722,58304.0,58299.0,0.5308]
[1723687232643,0.060018,58300.0,58299.0,0.5308]
[1723687232844,0.060018,58300.0,58299.0,4.3008]
[1723687233847,0.00025722,58304.0,58299.0,4.3008]
[1723687234046,0.00025722,58304.0,58303.0,0.060015]
[1723687234349,0.06027122,58304.0,58303.0,0.16]
[1723687234648,0.06027122,58304.0,58303.0,3.93]
[1723687235349,0.23027122,58304.0,58303.0,3.93]
[1723687235645,0.59107122,58304.0,58303.0,3.93]
[1723687235850,0.23027122,58304.0,58303.0,3.93]
[1723687236050,0.29028522,58304.0,58303.0,3.93]
[1723687236256,0.23027122,58304.0,58303.0,3.93]
[1723687237448,0.17025722,58304.0,58303.0,3.93]
[1723687237650,0.17025722,58304.0,58303.0,3.990015]
[1723687237839,0.15025722,58304.0,58303.0,3.93]
[1723687238245,0.15025722,58304.0,58303.0,3.990015]
[1723687238451,0.00025722,58304.0,58303.0,4.904575]
[1723687238952,0.060007,58311.0,58307.0,0.06001]
[1723687239250,0.210007,58311.0,58307.0,0.21001]
[1723687239550,0.12002,58308.0,58307.0,0.15]
[1723687239756,0.17,58308.0,58307.0,0.15]
[1723687239951,0.31161621,58308.0,58307.0,0.00420446]
[1723687240145,0.38258794,58308.0,58307.0,3.77420446]
[1723687240345,0.25160621,58308.0,58307.0,5.04952446]
[1723687240541,0.15312108,58308.0,58307.0,1.335331]
[1723687240744,0.15312108,58308.0,58307.0,1.505331]
[1723687241148,0.00575263,58316.0,58308.0,0.51452]
[1723687241352,0.11662179,58325.0,58315.0,0.3608]
[1723687241647,0.11662179,58326.0,58324.0,4.1308]
[1723687241848,0.07787103,58325.0,58324.0,4.701593]
[1723687242150,0.07787103,58325.0,58324.0,5.101593]
[1723687242451,0.07787103,58325.0,58324.0,5.79430518]
[1723687242749,0.07787103,58325.0,58324.0,5.615953]
[1723687242952,0.07787103,58325.0,58324.0,5.55596]
[1723687243148,0.07787103,58325.0,58324.0,4.6416]
[1723687243348,0.06087341,58325.0,58324.0,5.55596]
[1723687243546,0.06087341,58325.0,58324.0,5.615953]
[1723687243747,0.06087341,58325.0,58324.0,5.55596]
[1723687243948,0.12086541,58325.0,58324.0,4.6416]
[1723687244241,0.12086541,58325.0,58324.0,3.92]
[1723687244242,0.17153118,58325.0,58324.0,3.92]
[1723687244453,0.23914021,58325.0,58324.0,0.15]
[1723687244647,0.29913221,58325.0,58324.0,0.15]
[1723687244842,0.059997,58320.0,58319.0,0.00025722]
[1723687245047,0.12087528,58320.0,58319.0,0.00025722]
[1723687245250,0.11153918,58320.0,58319.0,1.07465722]
[1723687245453,0.11153918,58320.0,58319.0,4.90465522]
[1723687245855,0.19435098,58320.0,58319.0,4.90465522]
[1723687246161,0.17153618,58320.0,58319.0,3.93025722]
[1723687246360,0.11153918,58320.0,58319.0,3.99025522]
[1723687246549,0.06087828,58320.0,58319.0,4.90465522]
[1723687246754,0.17775782,58320.0,58319.0,4.90465522]
[1723687246956,0.059988,58329.0,58319.0,3.93025722]
[1723687247163,0.059997,58320.0,58319.0,3.93025722]
[1723687247559,0.3608,58327.0,58319.0,3.93025722]
[1723687247753,0.41089051,58327.0,58321.0,0.059996]
[1723687247953,0.05009051,58324.0,58321.0,0.16]
[1723687248152,0.47088551,58322.0,58321.0,0.16]
[1723687248357,0.420795,58322.0,58321.0,0.16]
[1723687248650,0.06678735,58326.0,58321.0,0.16]
[1723687248958,0.05008262,58324.0,58323.0,0.059994]
[1723687249257,0.3608,58327.0,58326.0,0.059991]
[1723687249454,0.3608,58327.0,58326.0,0.16]
[1723687249648,0.41088283,58327.0,58326.0,0.16]
[1723687249847,0.42079,58327.0,58326.0,0.16]
[1723687250056,0.47086799,58327.0,58326.0,3.93]
[1723687250458,0.41087799,58327.0,58326.0,3.93]
[1723687250661,0.05007799,58329.0,58328.0,0.059989]
[1723687250965,0.00025722,58330.0,58328.0,0.15]
[1723687250966,0.06024522,58330.0,58328.0,0.15]
[1723687251259,0.00025722,58330.0,58329.0,0.059988]
[1723687251455,0.00025722,58330.0,58329.0,0.229988]
[1723687251863,0.00025722,58330.0,58329.0,1.144308]
[1723687252053,0.00025722,58330.0,58329.0,4.914308]
[1723687253059,0.00025722,58330.0,58329.0,3.999988]
[1723687253657,0.00025722,58330.0,58329.0,4.360788]
[1723687254657,0.00025722,58330.0,58329.0,5.275108]
[1723687254962,0.06112058,58330.0,58329.0,5.30937039]
[1723687255160,0.11676425,58342.0,58330.0,0.51428]
[1723687255463,0.11676425,58349.0,58341.0,0.7216]
[1723687255658,0.11676425,58344.0,58341.0,0.5008]
[1723687255858,0.06085146,58343.0,58341.0,0.5008]
[1723687256083,0.06085146,58342.0,58341.0,0.5008]
[1723687256365,0.02776714,58342.0,58341.0,0.9008]
[1723687256571,0.02776714,58342.0,58341.0,5.185]
[1723687256954,0.12769347,58342.0,58341.0,5.185]
[1723687257269,0.00016388,58348.0,58341.0,5.185]
[1723687257270,0.0999264,58344.0,58342.0,0.059975]
[1723687257565,0.12766733,58343.0,58342.0,0.599975]
[1723687257754,0.02776736,58343.0,58342.0,0.960775]
[1723687257957,0.02776736,58343.0,58342.0,1.474975]
[1723687258152,0.08774136,58343.0,58342.0,0.5008]
[1723687258356,0.0608509,58343.0,58342.0,4.6316]
[1723687258565,0.02776736,58343.0,58342.0,5.5458]
[1723687259456,0.00016388,58348.0,58342.0,5.5458]
[1723687259457,0.00016388,58348.0,58343.0,0.059974]
[1723687259667,0.15023492,58372.0,58343.0,0.059974]
[1723687259668,2.1e-07,58354.0,58353.0,0.059963]
[1723687259963,0.02775971,58354.0,58353.0,0.590763]
[1723687260162,0.02775971,58354.0,58353.0,1.94322239]
[1723687260362,0.02775971,58354.0,58353.0,5.71322239]
[1723687260569,0.11676425,58367.0,58353.0,5.65325939]
[1723687260765,0.0608296,58366.0,58363.0,0.3608]
[1723687260973,0.12078118,58365.0,58363.0,0.5108]
[1723687261265,0.02775848,58364.0,58363.0,0.5108]
[1723687261666,0.02775848,58364.0,58363.0,1.0248]
[1723687261865,0.02775848,58364.0,58363.0,1.4248]
[1723687262061,0.059944,58372.0,58363.0,5.1948]
[1723687262256,0.059944,58372.0,58370.0,0.41163177]
[1723687262463,0.059944,58372.0,58370.0,0.55163177]
[1723687262666,0.059944,58372.0,58371.0,0.05083177]
[1723687262863,0.059944,58372.0,58371.0,0.16]
[1723687263277,0.059944,58372.0,58371.0,3.98083177]
[1723687263570,0.059939,58377.0,58371.0,3.98083177]
[1723687263765,0.05994,58376.0,58371.0,3.93]
[1723687264166,0.05994,58376.0,58371.0,3.989945]
[1723687264366,0.3608,58395.0,58375.0,0.3608]
[1723687264566,0.00556998,58387.0,58378.0,0.05083177]
[1723687264767,0.00556998,58387.0,58378.0,0.16]
[1723687264966,0.3608,58395.0,58383.0,0.3608]
[1723687265175,0.059931,58385.0,58383.0,0.5108]
[1723687266269,0.059931,58385.0,58383.0,0.15]
[1723687266472,0.119874,58379.0,58378.0,0.00025699]
[1723687266677,0.119874,58379.0,58378.0,0.17025699]
[1723687267262,0.059937,58379.0,58378.0,0.17025699]
[1723687267463,0.3608,58389.0,58378.0,0.17025699]
[1723687267666,0.059932,58384.0,58382.0,0.3608]
[1723687267872,0.059933,58383.0,58382.0,0.5308]
[1723687268079,0.059933,58383.0,58382.0,4.3008]
[1723687269771,0.139933,58383.0,58382.0,4.3008]
[1723687269966,0.16768655,58383.0,58382.0,4.3008]
[1723687270171,0.16768655,58383.0,58382.0,3.94]
[1723687270774,0.10775355,58383.0,58382.0,4.3008]
[1723687270986,0.059928,58388.0,58382.0,4.360734]
[1723687271275,0.059933,58383.0,58382.0,4.3008]
[1723687271469,0.199933,58383.0,58382.0,3.94]
[1723687271875,0.22768627,58383.0,58382.0,3.94]
[1723687272180,0.199933,58383.0,58382.0,3.94]
[1723687272877,0.059933,58383.0,58382.0,3.94]
[1723687273073,0.219933,58383.0,58382.0,3.94]
[1723687274080,0.06638972,58384.0,58382.0,3.94]
[1723687274400,6.4e-07,58410.0,58395.0,0.05992]
[1723687274585,0.13354236,58436.0,58395.0,0.05992]
[1723687274586,0.04181525,58408.0,58406.0,0.059909]
[1723687274774,0.3608,58411.0,58401.0,0.3608]
[1723687274982,0.059912,58403.0,58401.0,0.3608]
[1723687275275,0.36636878,58411.0,58397.0,3.829918]
[1723687275584,0.38854494,58410.0,58397.0,3.93]
[1723687275883,0.059917,58399.0,58397.0,3.93]
[1723687276291,0.059917,58399.0,58397.0,3.77]
[1723687276473,0.3608,58405.0,58397.0,3.77]
[1723687277276,0.059917,58399.0,58397.0,3.77]
[1723687277481,0.059917,58399.0,58397.0,3.93]
[1723687277890,0.059917,58398.0,58397.0,3.93]
[1723687280681,0.00574636,58405.0,58397.0,3.93]
[1723687280884,0.3608,58410.0,58397.0,4.2908]
[1723687281186,0.3608,58410.0,58407.0,0.059908]
[1723687281387,0.3608,58410.0,58378.0,0.06777254]
[1723687281388,0.059934,58382.0,58378.0,0.06777254]
[1723687281694,0.420737,58379.0,58378.0,0.15]
[1723687281893,0.119878,58377.0,58376.0,0.1965751]
[1723687282085,0.119878,58377.0,58360.0,0.2398]
[1723687282086,0.119906,58363.0,58360.0,0.2398]
[1723687282287,0.119906,58363.0,58347.0,0.05083208]
[1723687282288,0.059966,58351.0,58347.0,0.05083208]
[1723687282583,0.7216,58348.0,58342.0,0.22286891]
[1723687282786,0.3608,58343.0,58342.0,0.08292695]
[1723687282986,0.875,58343.0,58342.0,9.5e-07]
[1723687283185,0.059983,58334.0,58333.0,3.77]
[1723687283376,0.550783,58334.0,58333.0,3.77]
[1723687283580,0.87508,58334.0,58317.0,0.05083208]
[1723687283777,0.3608,58319.0,58316.0,0.0509142]
[1723687283981,0.00020726,58318.0,58314.0,0.0509142]
[1723687284188,0.00020726,58318.0,58315.0,0.0509142]
[1723687284378,0.00020726,58318.0,58316.0,0.060001]
[1723687284578,0.00020726,58318.0,58317.0,3.77]
[1723687285388,0.00020726,58318.0,58317.0,3.82084436]
[1723687285595,0.00020726,58318.0,58317.0,3.77]
[1723687286879,0.36105673,58323.0,58317.0,3.77]
[1723687286880,0.00025673,58323.0,58321.0,0.059996]
[1723687287088,0.00025673,58323.0,58322.0,0.3608]
[1723687287291,0.00025673,58323.0,58322.0,1.0352]
[1723687287482,0.00025673,58323.0,58322.0,0.3608]
[1723687287882,0.00025673,58323.0,58322.0,1.4352]
[1723687288190,0.00025673,58323.0,58322.0,1.0744]
[1723687288389,0.00025673,58323.0,58322.0,0.56]
[1723687288583,0.00025673,58323.0,58322.0,1.0744]
[1723687288798,0.00025673,58323.0,58322.0,1.4352]
[1723687288988,0.00025673,58323.0,58322.0,0.05072902]
[1723687289294,0.36105673,58323.0,58310.0,0.3608]
[1723687289485,0.42105073,58323.0,58322.0,3.77]
[1723687289686,0.57722001,58368.0,58360.0,0.27134264]
[1723687289886,0.57722001,58368.0,58322.0,3.77]
[1723687289887,0.059989,58329.0,58322.0,3.77]
[1723687290591,0.3608,58339.0,58322.0,3.77]
[1723687291282,0.3608,58339.0,58325.0,0.00025721]
[1723687291485,0.3608,58339.0,58322.0,3.77]
[1723687291486,0.3608,58317.0,58279.0,0.3608]
[1723687291687,0.3608,58280.0,58271.0,0.0675326]
[1723687291906,0.3608,58275.0,58272.0,3.77]
[1723687292080,0.060046,58273.0,58272.0,3.75934627]
[1723687292586,0.060046,58273.0,58270.0,0.16]
[1723687292587,0.060048,58271.0,58270.0,0.16]
[1723687292785,0.060064,58255.0,58247.0,0.3608]
[1723687292991,0.30085688,58254.0,58247.0,0.3608]
[1723687293197,0.30085688,58254.0,58248.0,4.01008]
[1723687293493,0.36092288,58254.0,58248.0,4.01008]
[1723687294191,0.30085688,58254.0,58248.0,4.01008]
[1723687294390,0.3608,58275.0,58252.0,0.3608]
[1723687294584,0.3608,58275.0,58269.0,0.420849]
[1723687294781,0.3608,58275.0,58269.0,0.17]
[1723687295195,0.3608,58270.0,58256.0,0.3608]
[1723687295388,0.3608,58270.0,58256.0,0.11]
[1723687295884,0.3608,58270.0,58266.0,0.00025746]
[1723687296091,0.060051,58268.0,58266.0,0.00025746]
[1723687297189,0.3608,58270.0,58266.0,0.00025746]
[1723687297905,0.3608,58272.0,58266.0,0.17025746]
[1723687298200,0.3608,58272.0,58270.0,0.060048]
[1723687298386,0.3608,58272.0,58270.0,0.230048]
[1723687298586,0.3608,58271.0,58270.0,0.230048]
[1723687298789,0.3608,58290.0,58271.0,0.51484]
[1723687298993,0.3608,58290.0,58280.0,0.3608]
[1723687299194,0.3608,58301.0,58289.0,3.77]
[1723687299397,0.3608,58301.0,58300.0,0.060018]
[1723687299609,0.3608,58301.0,58300.0,0.4102]
[1723687299993,0.3608,58301.0,58300.0,4.1802]
[1723687300306,0.060043,58275.0,58260.0,0.3608]
[1723687300512,0.3608,58271.0,58260.0,0.5008]
[1723687300807,0.3608,58261.0,58255.0,0.3215]
[1723687301191,0.3608,58261.0,58250.0,0.2402]
[1723687301192,0.3608,58256.0,58250.0,0.2402]
[1723687301391,0.3608,58251.0,58250.0,0.4102]
[1723687301591,0.3608,58255.0,58250.0,0.17]
[1723687301802,0.060066,58254.0,58252.0,0.00025746]
[1723687301994,0.3608,58255.0,58252.0,0.14025746]
[1723687302807,0.3608,58255.0,58252.0,0.20032446]
[1723687303601,0.3608,58255.0,58252.0,0.14025746]
[1723687303904,0.3608,58255.0,58252.0,0.00025746]
[1723687304596,0.8758,58255.0,58252.0,0.00025746]
[1723687304996,0.060066,58254.0,58252.0,0.00025746]
[1723687305403,0.3608,58255.0,58253.0,0.060066]
[1723687305596,0.3608,58255.0,58253.0,0.200066]
[1723687305904,0.3608,58262.0,58258.0,0.060061]
[1723687306101,0.3608,58262.0,58258.0,0.14]
[1723687306303,0.3608,58262.0,58254.0,3.830064]
[1723687306503,0.3608,58262.0,58254.0,3.970064]
[1723687306700,0.3608,58262.0,58255.0,0.060064]
[1723687306901,0.3608,58262.0,58255.0,0.230064]
[1723687307208,0.3608,58262.0,58254.0,3.77]
[1723687307694,0.060063,58256.0,58254.0,3.77]
[1723687307901,0.270126,58256.0,58254.0,3.4092]
[1723687308107,0.51496,58255.0,58254.0,3.4092]
[1723687308402,0.66496,58255.0,58254.0,3.4092]
[1723687308605,1.065,58255.0,58254.0,3.4092]
[1723687309513,0.12013,58254.0,58252.0,0.00025746]
[1723687309707,0.060074,58245.0,58224.0,0.3608]
[1723687309903,0.060074,58245.0,58244.0,1.3e-07]
[1723687309904,1.056102,58245.0,58244.0,1.3e-07]
[1723687310100,1.506102,58245.0,58244.0,1.3e-07]
[1723687310909,1.506102,58245.0,58217.0,0.24032]
[1723687310910,0.060102,58218.0,58217.0,0.24032]
[1723687311099,0.060099,58221.0,58217.0,3.77]
[1723687311304,0.210099,58221.0,58217.0,3.77]
[1723687311709,0.0002038,58220.0,58217.0,3.77]
[1723687312504,0.0002038,58220.0,58219.0,0.060101]
[1723687312813,0.3608,58239.0,58219.0,0.56]
[1723687313119,0.3608,58239.0,58238.0,3.77]
[1723687313412,0.3608,58239.0,58238.0,3.830081]
[1723687313613,0.3608,58246.0,58238.0,3.830081]
[1723687313614,0.3608,58246.0,58238.0,4.2908]
[1723687313813,0.060062,58257.0,58247.0,0.060072]
[1723687314003,0.060062,58257.0,58254.0,0.3608]
[1723687314199,0.3608,58265.0,58254.0,0.3608]
[1723687314504,0.5308,58265.0,58254.0,0.420865]
[1723687314709,0.53707005,58265.0,58255.0,0.060063]
[1723687314910,0.53707005,58265.0,58254.0,0.3608]
[1723687315199,0.060063,58256.0,58254.0,0.3608]
[1723687315711,0.060063,58256.0,58255.0,3.77]
[1723687316614,1.105023,58256.0,58255.0,3.77]
[1723687316813,0.190063,58256.0,58255.0,3.77]
[1723687317017,0.705023,58256.0,58255.0,3.77]
[1723687317715,0.190063,58256.0,58255.0,3.77]
[1723687317909,0.19622549,58256.0,58255.0,3.77]
[1723687318217,0.25628849,58256.0,58255.0,3.77]
[1723687318612,0.19622549,58256.0,58255.0,3.77]
[1723687320713,0.13,58256.0,58255.0,3.77]
[1723687321007,0.060057,58262.0,58255.0,3.93]
[1723687321207,0.060057,58262.0,58261.0,0.3608]
[1723687321514,0.060051,58268.0,58255.0,3.77]
[1723687321706,0.060051,58268.0,58259.0,0.3608]
[1723687321707,0.15,58268.0,58259.0,0.3608]
[1723687322018,0.15,58268.0,58265.0,0.3608]
[1723687322019,0.210051,58268.0,58265.0,0.3608]
[1723687322322,0.060047,58272.0,58265.0,0.5108]
[1723687322515,0.060049,58270.0,58265.0,0.5108]
[1723687322820,0.36692533,58277.0,58266.0,3.77]
[1723687323006,0.52692533,58277.0,58266.0,3.93]
[1723687323209,0.060045,58274.0,58266.0,3.93]
[1723687323411,0.16,58274.0,58266.0,3.93]
[1723687323613,0.06005,58269.0,58266.0,3.93]
[1723687324009,0.11005,58269.0,58266.0,3.93]